bitfinex/quotes_SOLUSD_20230120
["timestamp","ask_amount","ask_price","bid_price","bid_amount"]
[1674189398390,0.96,21.397,21.386,20.0]
[1674189398599,0.96,21.397,21.385,20.0]
[1674189399667,0.96,21.397,21.386,10.0]
[1674189399868,0.96,21.397,21.387,20.0]
[1674189401465,0.96,21.396,21.387,20.0]
[1674189401672,0.96,21.396,21.386,20.0]
[1674189401881,0.96,21.396,21.385,20.0]
[1674189404198,0.96,21.396,21.386,10.0]
[1674189404396,0.96,21.396,21.387,20.0]
[1674189406721,0.96,21.395,21.386,20.0]
[1674189407432,10.0,21.398,21.386,20.0]
[1674189407643,1.92,21.397,21.386,20.0]
[1674189410608,0.96,21.397,21.386,20.0]
[1674189410842,10.0,21.398,21.386,20.0]
[1674189411893,10.0,21.398,21.384,111.3665]
[1674189412107,10.0,21.398,15.491,0.8207448]
[1674189412108,42.67576951,21.397,21.37,14.92]
[1674189412419,58.81576951,21.396,21.37,33.66730009]
[1674189412610,28.92,21.395,21.37,33.66730009]
[1674189412949,10.0,21.393,21.37,33.66730009]
[1674189413253,53.98,21.392,21.37,33.66730009]
[1674189413575,10.0,21.391,21.37,33.66730009]
[1674189413764,18.92,21.39,21.37,33.66730009]
[1674189414287,10.0,21.389,21.37,33.66730009]
[1674189414495,1.92,21.388,21.374,17.0]
[1674189415860,1.92,21.388,21.375,20.0]
[1674189424598,10.0,21.387,21.374,20.0]
[1674189424925,1.92,21.386,21.368,10.0]
[1674189425137,10.0,21.385,21.368,10.0]
[1674189441230,0.96,21.384,21.368,10.0]
[1674189445013,0.96,21.383,21.368,10.0]
[1674189445328,0.96,21.382,21.368,10.0]
[1674189449411,0.96,21.382,21.36,14.82]
[1674189449622,0.96,21.381,21.36,14.82]
[1674189450683,0.96,21.38,21.36,14.82]
[1674189450898,0.96,21.379,21.363,20.0]
[1674189451091,0.96,21.378,21.363,20.0]
[1674189451939,0.96,21.377,21.363,20.0]
[1674189452147,0.96,21.376,21.363,20.0]
[1674189452363,0.96,21.375,21.359,104.5334]
[1674189452563,0.96,21.374,21.357,119.2091]
[1674189452761,0.96,21.374,21.36,14.92]
[1674189452971,10.96,21.375,21.36,14.92]
[1674189453308,10.0,21.375,21.36,14.92]
[1674189454047,54.01,21.374,21.356,104.5334]
[1674189454263,10.0,21.373,21.356,104.5334]
[1674189454574,18.92,21.372,21.357,10.0]
[1674189454758,10.0,21.371,21.357,10.0]
[1674189454969,1.92,21.37,21.356,104.5334]
[1674189456162,18.92,21.37,21.357,20.0]
[1674189456379,10.0,21.369,21.357,20.0]
[1674189456585,1.92,21.368,21.357,20.0]
[1674189459212,10.0,21.369,21.358,10.0]
[1674189460668,10.0,21.369,21.357,30.0]
[1674189461735,10.0,21.369,21.357,20.0]
[1674189462047,0.96,21.368,21.357,20.0]
[1674189462249,1.92,21.368,21.357,20.0]
[1674189463521,18.92,21.368,21.357,20.0]
[1674189463711,0.96,21.367,21.357,20.0]
[1674189464046,0.96,21.366,21.357,20.0]
[1674189466573,0.96,21.366,21.359,104.5334]
[1674189470372,10.96,21.367,21.359,104.5334]
[1674189470691,35.09,21.374,21.359,104.5334]
[1674189471427,35.1,21.372,21.36,10.0]
[1674189471636,35.09,21.374,21.36,10.0]
[1674189471820,1.92,21.37,21.36,10.0]
[1674189472347,1.92,21.37,21.359,104.5334]
[1674189473517,18.81960832,21.37,21.359,104.5334]
[1674189473732,55.1,21.369,21.358,104.5334]
[1674189473948,17.96,21.368,21.358,104.5334]
[1674189474134,35.1,21.367,21.353,104.5334]
[1674189474343,27.96,21.366,21.353,104.5334]
[1674189474553,10.0,21.365,21.353,104.5334]
[1674189474772,0.96,21.364,21.353,104.5334]
[1674189475730,0.96,21.363,21.353,104.5334]
[1674189477096,0.96,21.362,21.353,104.5334]
[1674189477286,0.96,21.361,21.351,82.9628]
[1674189477499,0.96,21.36,21.351,82.9628]
[1674189477707,0.96,21.36,21.345,104.5334]
[1674189477922,0.96,21.36,21.346,20.0]
[1674189477923,0.96,21.359,21.346,20.0]
[1674189478130,0.96,21.358,21.346,20.0]
[1674189478346,0.96,21.357,21.346,20.0]
[1674189478554,0.96,21.356,21.346,20.0]
[1674189478761,0.96,21.355,21.346,20.0]
[1674189479086,0.96,21.354,21.346,20.0]
[1674189479598,10.96,21.355,21.346,20.0]
[1674189480029,10.0,21.355,21.346,20.0]
[1674189480232,10.0,21.355,21.347,104.5334]
[1674189480855,10.0,21.355,21.346,20.0]
[1674189481064,1.92,21.354,21.346,20.0]
[1674189481605,10.0,21.353,21.345,104.5334]
[1674189481823,1.92,21.352,21.34,87.7666]
[1674189482643,0.96,21.352,21.34,87.7666]
[1674189482853,10.0,21.353,21.34,87.7666]
[1674189483064,1.92,21.352,21.34,87.7666]
[1674189484772,10.0,21.351,21.34,87.7666]
[1674189484955,1.92,21.35,21.34,87.7666]
[1674189486653,1.92,21.35,21.332,10.0]
[1674189486876,10.0,21.349,21.333,20.0]
[1674189487083,18.92,21.348,21.333,20.0]
[1674189487602,10.0,21.347,21.332,20.0]
[1674189487921,1.92,21.346,21.332,20.0]
[1674189488112,18.92,21.346,21.332,20.0]
[1674189488527,1.92,21.346,21.333,10.0]
[1674189488748,1.92,21.346,21.334,20.0]
[1674189490654,1.92,21.346,21.33,10.0]
[1674189490849,10.0,21.345,21.328,10.0]
[1674189491053,18.92,21.344,21.32,14.8]
[1674189491701,10.0,21.343,21.321,10.0]
[1674189491889,1.92,21.342,21.321,10.0]
[1674189493066,10.0,21.341,21.323,10.0]
[1674189493279,1.92,21.34,21.323,10.0]
[1674189493487,10.0,21.341,21.323,10.0]
[1674189494658,0.96,21.342,21.323,10.0]
[1674189494871,10.0,21.345,21.331,10.0]
[1674189495082,45.14,21.347,21.332,17.0]
[1674189495391,124.8125,21.353,21.332,17.0]
[1674189495601,114.8125,21.353,21.34,14.94]
[1674189496347,45.12,21.357,21.34,14.94]
[1674189496661,45.12,21.357,21.341,17.0]
[1674189497597,17.96,21.354,21.34,14.94]
[1674189497788,10.0,21.353,21.334,10.0]
[1674189498130,1.92,21.352,21.335,38.92]
[1674189498316,1.92,21.352,21.335,20.0]
[1674189498535,35.13,21.351,21.335,20.0]
[1674189498740,18.92,21.35,21.334,20.0]
[1674189498949,10.0,21.349,21.334,20.0]
[1674189499171,18.92,21.348,21.334,20.0]
[1674189499376,10.0,21.347,21.334,20.0]
[1674189499594,1.92,21.346,21.334,20.0]
[1674189499801,1.92,21.346,21.332,20.0]
[1674189499993,18.92,21.346,21.332,20.0]
[1674189500209,18.92,21.346,21.33,24.94]
[1674189500436,18.92,21.346,21.33,10.0]
[1674189500437,10.0,21.345,21.33,10.0]
[1674189500639,18.92,21.344,21.33,10.0]
[1674189500856,10.0,21.343,21.33,10.0]
[1674189501169,1.92,21.342,21.328,10.0]
[1674189501575,10.0,21.343,21.328,10.0]
[1674189501802,10.0,21.343,21.33,10.0]
[1674189502125,0.96,21.342,21.326,10.0]
[1674189502315,1.92,21.342,21.326,10.0]
[1674189502517,18.92,21.342,21.326,10.0]
[1674189503047,10.0,21.341,21.326,10.0]
[1674189503270,1.92,21.34,21.326,10.0]
[1674189503899,10.0,21.341,21.311,167.38599319]
[1674189504119,10.0,21.339,21.323,10.0]
[1674189504301,1.92,21.338,21.324,20.0]
[1674189504519,1.92,21.338,21.325,10.0]
[1674189504732,1.92,21.338,21.326,20.0]
[1674189505480,18.92,21.338,21.326,20.0]
[1674189505687,18.92,21.338,21.319,10.0]
[1674189506015,45.15,21.337,21.318,88.3912]
[1674189506227,0.96,21.336,21.318,88.3912]
[1674189506546,36.12,21.335,21.318,88.3912]
[1674189506746,17.96,21.334,21.318,88.3912]
[1674189506960,46.12,21.333,21.318,88.3912]
[1674189507156,17.96,21.332,21.318,88.3912]
[1674189507367,10.96,21.331,21.318,88.3912]
[1674189507705,17.96,21.33,21.318,88.3912]
[1674189507897,10.96,21.329,21.318,88.3912]
[1674189508101,0.96,21.328,21.318,88.3912]
[1674189508321,0.96,21.327,21.318,88.3912]
[1674189508639,0.96,21.326,21.311,10.0]
[1674189508958,0.96,21.325,21.312,20.0]
[1674189510321,0.96,21.324,21.312,20.0]
[1674189510514,0.96,21.323,21.312,20.0]
[1674189510726,0.96,21.323,21.31,20.0]
[1674189510939,0.96,21.322,21.31,20.0]
[1674189511675,0.96,21.322,21.309,30.0]
[1674189512295,0.96,21.323,21.31,17.0]
[1674189512643,45.17,21.329,21.312,10.0]
[1674189512950,1.92,21.326,21.313,20.0]
[1674189513258,0.96,21.326,21.314,10.0]
[1674189513475,0.96,21.328,21.314,10.0]
[1674189513670,0.96,21.328,21.315,20.0]
[1674189515550,0.96,21.327,21.315,20.0]
[1674189515787,10.96,21.327,21.313,10.0]
[1674189515989,45.16,21.33,21.315,10.0]
[1674189516198,10.0,21.33,21.316,20.0]
[1674189516521,10.0,21.33,21.317,17.0]
[1674189517129,35.16,21.334,21.318,10.0]
[1674189517353,35.16,21.334,21.319,17.0]
[1674189517561,45.16,21.335,21.318,10.0]
[1674189517778,45.16,21.335,21.319,17.0]
[1674189518610,1.92,21.332,21.316,20.0]
[1674189518810,18.92,21.332,21.316,20.0]
[1674189519149,1.92,21.332,21.317,17.0]
[1674189519584,1.92,21.332,21.318,10.0]
[1674189519807,1.92,21.332,21.319,17.0]
[1674189519991,1.92,21.332,21.32,10.0]
[1674189521469,1.92,21.332,21.318,119.4048]
[1674189521678,10.0,21.331,21.318,119.4048]
[1674189521881,1.92,21.33,21.318,119.4048]
[1674189522101,18.92,21.33,21.316,20.0]
[1674189522314,18.92,21.33,21.314,20.0]
[1674189522528,10.0,21.329,21.314,20.0]
[1674189522729,18.92,21.328,21.314,20.0]
[1674189523063,10.0,21.327,21.314,20.0]
[1674189523374,10.0,21.325,21.312,20.0]
[1674189523570,1.92,21.324,21.312,20.0]
[1674189524926,1.92,21.324,21.309,119.364]
[1674189525136,54.09,21.324,21.307,84.4384]
[1674189525580,10.0,21.323,21.307,84.4384]
[1674189525896,54.1,21.322,21.307,84.4384]
[1674189526287,10.0,21.321,21.307,84.4384]
[1674189526506,10.0,21.319,21.307,84.4384]
[1674189526719,1.92,21.318,21.307,84.4384]
[1674189527357,1.92,21.318,21.3,14.85]
[1674189527548,10.0,21.317,21.302,10.0]
[1674189527758,18.92,21.316,21.303,20.0]
[1674189527983,10.0,21.315,21.303,20.0]
[1674189528177,18.92,21.314,21.303,20.0]
[1674189529251,18.92,21.314,21.301,20.0]
[1674189529471,10.0,21.313,21.301,20.0]
[1674189529776,10.0,21.317,21.301,20.0]
[1674189529983,10.0,21.317,21.302,10.0]
[1674189530194,10.0,21.317,21.304,10.0]
[1674189530600,10.0,21.317,21.3,14.85]
[1674189530846,35.19,21.316,21.292,37.94250615]
[1674189531146,18.92,21.315,21.29,14.87]
[1674189531336,10.0,21.314,21.297,10.0]
[1674189531547,1.92,21.313,21.297,10.0]
[1674189531960,1.92,21.313,21.298,17.0]
[1674189532412,1.92,21.313,21.299,10.0]
[1674189532724,35.18,21.32,21.3,31.94]
[1674189532941,35.18,21.322,21.301,0.96]
[1674189533121,10.0,21.325,21.302,0.96]
[1674189533331,10.0,21.325,21.303,0.96]
[1674189533663,10.0,21.325,21.304,0.96]
[1674189533976,10.0,21.325,21.305,0.96]
[1674189534183,10.0,21.325,21.306,0.96]
[1674189534381,10.0,21.325,21.306,10.96]
[1674189534609,10.0,21.325,21.307,152.9625]
[1674189534804,0.96,21.322,21.307,20.0]
[1674189535003,17.96,21.322,21.307,20.0]
[1674189535218,17.96,21.322,21.305,20.0]
[1674189535429,10.0,21.321,21.305,20.0]
[1674189535638,17.96,21.32,21.305,20.0]
[1674189536063,10.96,21.319,21.305,20.0]
[1674189536275,0.96,21.318,21.305,20.0]
[1674189536903,0.96,21.317,21.305,20.0]
[1674189537449,0.96,21.316,21.305,20.0]
[1674189537878,0.96,21.315,21.303,20.0]
[1674189538788,10.96,21.315,21.296,95.8254]
[1674189539010,53.15,21.314,21.296,95.8254]
[1674189539215,0.96,21.313,21.296,95.8254]
[1674189539433,0.96,21.313,21.297,10.0]
[1674189539434,10.96,21.313,21.297,10.0]
[1674189539636,0.96,21.312,21.296,85.8254]
[1674189539847,0.96,21.311,21.296,85.8254]
[1674189540388,0.96,21.311,21.297,10.0]
[1674189541008,0.96,21.311,21.298,17.0]
[1674189541202,0.96,21.311,21.296,85.8254]
[1674189541418,0.96,21.31,21.297,20.0]
[1674189541633,0.96,21.309,21.297,20.0]
[1674189541968,0.96,21.308,21.297,20.0]
[1674189542210,0.96,21.307,21.297,20.0]
[1674189543785,0.96,21.308,21.297,20.0]
[1674189544190,0.96,21.307,21.297,20.0]
[1674189544509,0.96,21.306,21.297,20.0]
[1674189546094,0.96,21.305,21.285,84.5934]
[1674189546412,10.96,21.305,21.285,84.5934]
[1674189546597,0.96,21.304,21.285,84.5934]
[1674189546936,0.96,21.303,21.286,10.0]
[1674189547335,0.96,21.303,21.282,104.5334]
[1674189547669,0.96,21.303,21.281,104.5334]
[1674189547670,19.88,21.3,21.281,104.5334]
[1674189547868,10.0,21.298,21.281,104.5334]
[1674189548082,74.14,21.297,21.281,104.5334]
[1674189548290,10.0,21.296,21.281,104.5334]
[1674189548604,53.18,21.295,21.281,104.5334]
[1674189548813,10.0,21.294,21.281,104.5334]
[1674189549018,18.92,21.293,21.281,104.5334]
[1674189549229,10.0,21.292,21.281,104.5334]
[1674189549455,1.92,21.291,21.281,104.5334]
[1674189549658,10.0,21.292,21.281,104.5334]
[1674189550612,1.92,21.291,21.281,104.5334]
[1674189552708,10.0,21.294,21.281,104.5334]
[1674189552909,1.92,21.293,21.281,104.5334]
[1674189553118,10.0,21.292,21.281,104.5334]
[1674189553329,18.92,21.291,21.281,104.5334]
[1674189553555,1.92,21.291,21.281,104.5334]
[1674189553746,35.22,21.295,21.281,104.5334]
[1674189553944,17.0,21.294,21.282,10.0]
[1674189554156,0.96,21.293,21.282,10.0]
[1674189554372,17.0,21.295,21.282,10.0]
[1674189554373,0.96,21.294,21.282,10.0]
[1674189554581,0.96,21.294,21.281,104.5334]
[1674189555029,10.96,21.294,21.281,104.5334]
[1674189555218,0.96,21.293,21.281,104.5334]
[1674189556271,10.0,21.294,21.281,104.5334]
[1674189556487,10.0,21.294,21.282,10.0]
[1674189556694,10.0,21.294,21.281,104.5334]
[1674189557646,1.92,21.293,21.281,104.5334]
[1674189558487,18.92,21.293,21.281,104.5334]
[1674189558697,1.92,21.293,21.281,104.5334]
[1674189559016,18.92,21.293,21.281,104.5334]
[1674189559235,10.0,21.292,21.281,104.5334]
[1674189559423,1.92,21.291,21.281,104.5334]
[1674189560157,0.96,21.291,21.281,104.5334]
[1674189560383,10.0,21.292,21.281,104.5334]
[1674189561650,18.92,21.291,21.281,104.5334]
[1674189561951,45.22,21.294,21.281,104.5334]
[1674189562171,65.22,21.297,21.282,10.0]
[1674189562378,20.0,21.297,21.282,10.0]
[1674189562907,10.0,21.296,21.282,10.0]
[1674189563641,10.0,21.294,21.281,104.5334]
[1674189563837,17.96,21.293,21.281,104.5334]
[1674189564036,1.92,21.293,21.282,10.0]
[1674189566241,1.92,21.293,21.281,104.5334]
[1674189566451,18.92,21.293,21.281,104.5334]
[1674189566680,10.0,21.292,21.281,104.5334]
[1674189566889,1.92,21.291,21.275,10.0]
[1674189567096,1.92,21.291,21.276,37.0]
[1674189567316,1.92,21.291,21.281,104.5334]
[1674189568263,18.92,21.291,21.281,104.5334]
[1674189568583,10.0,21.29,21.281,104.5334]
[1674189568794,1.92,21.289,21.281,104.5334]
[1674189573307,0.96,21.289,21.282,10.0]
[1674189573522,10.0,21.293,21.281,104.5334]
[1674189573725,0.96,21.292,21.281,104.5334]
[1674189574669,0.96,21.291,21.281,104.5334]
[1674189575204,10.96,21.291,21.281,104.5334]
[1674189575415,0.96,21.29,21.281,104.5334]
[1674189575619,0.96,21.289,21.281,104.5334]
[1674189578667,0.96,21.288,21.281,104.5334]
[1674189578890,0.96,21.287,21.281,104.5334]
[1674189579099,10.0,21.291,21.281,104.5334]
[1674189580558,0.96,21.29,21.281,104.5334]
[1674189580977,0.96,21.289,21.281,104.5334]
[1674189581413,0.96,21.29,21.281,104.5334]
[1674189581620,0.96,21.289,21.281,104.5334]
[1674189582758,10.96,21.289,21.281,104.5334]
[1674189582985,0.96,21.288,21.281,104.5334]
[1674189583403,10.0,21.291,21.281,104.5334]
[1674189584654,0.96,21.29,21.281,104.5334]
[1674189584865,0.96,21.289,21.281,104.5334]
[1674189585813,10.96,21.289,21.281,104.5334]
[1674189586025,0.96,21.288,21.281,104.5334]
[1674189586651,10.0,21.291,21.281,104.5334]
[1674189586859,10.0,21.293,21.281,104.5334]
[1674189587219,118.9477,21.296,21.281,104.5334]
[1674189587811,118.9477,21.296,21.282,10.0]
[1674189588126,0.96,21.295,21.282,10.0]
[1674189588329,113.6002,21.299,21.282,10.0]
[1674189588558,397.4,21.323,21.283,17.96]
[1674189588559,35.2,21.306,21.283,17.96]
[1674189588895,10.0,21.306,21.285,10.0]
[1674189589069,10.0,21.306,21.286,38.92]
[1674189589812,35.2,21.311,21.287,10.0]
[1674189590150,10.0,21.31,21.289,10.0]
[1674189590345,35.2,21.309,21.29,37.01]
[1674189590534,35.19,21.315,21.291,20.0]
[1674189590749,108.6604,21.317,21.3,20.01]
[1674189591002,10.0,21.316,21.301,10.0]
[1674189591168,108.6604,21.317,21.301,10.0]
[1674189591379,108.6604,21.317,21.291,20.0]
[1674189591598,58.94576951,21.316,21.292,17.0]
[1674189591818,10.0,21.314,21.291,10.0]
[1674189592013,55.19,21.313,21.291,10.0]
[1674189592244,10.0,21.312,21.291,10.0]
[1674189592434,73.16,21.311,21.291,10.0]
[1674189592641,0.96,21.31,21.291,10.0]
[1674189592852,0.96,21.309,21.291,10.0]
[1674189593071,0.96,21.308,21.291,10.0]
[1674189593392,0.96,21.307,21.29,30.01]
[1674189593586,0.96,21.306,21.29,30.01]
[1674189593796,0.96,21.305,21.289,125.7873]
[1674189594002,0.96,21.305,21.289,115.7873]
[1674189594423,10.96,21.305,21.289,115.7873]
[1674189594632,17.96,21.304,21.289,115.7873]
[1674189594858,10.96,21.303,21.289,115.7873]
[1674189595067,0.96,21.302,21.281,104.5334]
[1674189595295,36.17,21.301,21.281,104.5334]
[1674189595486,20.96,21.3,21.281,104.5334]
[1674189595702,10.0,21.298,21.281,104.5334]
[1674189595942,53.18,21.297,21.281,104.5334]
[1674189596130,10.96,21.296,21.281,104.5334]
[1674189596340,10.0,21.294,21.281,104.5334]
[1674189596551,0.96,21.293,21.281,104.5334]
[1674189596759,10.96,21.292,21.281,104.5334]
[1674189597077,0.96,21.291,21.281,104.5334]
[1674189597277,0.96,21.29,21.281,104.5334]
[1674189597481,0.96,21.289,21.281,104.5334]
[1674189597692,0.96,21.288,21.281,104.5334]
[1674189598854,0.96,21.287,21.281,104.5334]
[1674189599930,0.96,21.286,21.281,104.5334]
[1674189600137,10.0,21.292,21.281,104.5334]
[1674189600326,1.92,21.291,21.281,104.5334]
[1674189600664,0.96,21.291,21.281,104.5334]
[1674189601921,36.19,21.291,21.281,104.5334]
[1674189602133,27.96,21.29,21.281,104.5334]
[1674189602347,0.96,21.289,21.281,104.5334]
[1674189602740,10.96,21.289,21.281,104.5334]
[1674189602969,0.96,21.288,21.281,104.5334]
[1674189603375,0.96,21.288,21.282,104.5334]
[1674189603593,35.23,21.291,21.282,104.5334]
[1674189603915,10.0,21.292,21.283,104.5334]
[1674189605385,0.96,21.291,21.283,104.5334]
[1674189605812,10.0,21.292,21.283,104.5334]
[1674189606012,10.0,21.296,21.283,104.5334]
[1674189606227,10.0,21.296,21.284,20.0]
[1674189606643,10.0,21.296,21.282,30.0]
[1674189607710,10.0,21.296,21.282,10.0]
[1674189607930,10.0,21.296,21.281,114.5334]
[1674189608121,0.96,21.295,21.281,114.5334]
[1674189608544,0.96,21.295,21.281,104.5334]
[1674189608766,17.96,21.295,21.281,104.5334]
[1674189608969,36.18,21.294,21.281,104.5334]
[1674189609181,17.96,21.293,21.281,104.5334]
[1674189609382,46.19,21.292,21.281,104.5334]
[1674189609720,0.96,21.291,21.281,104.5334]
[1674189610848,10.96,21.292,21.281,104.5334]
[1674189612021,17.0,21.291,21.281,104.5334]
[1674189612218,11.92,21.29,21.282,104.5334]
[1674189612643,10.0,21.288,21.282,104.5334]
[1674189612843,1.92,21.287,21.282,104.5334]
[1674189613268,10.0,21.29,21.282,104.5334]
[1674189613473,35.23,21.293,21.282,104.5334]
[1674189613683,35.22,21.295,21.282,104.5334]
[1674189614330,45.22,21.297,21.282,104.5334]
[1674189614653,45.22,21.297,21.283,10.0]
[1674189615055,10.0,21.297,21.283,10.0]
[1674189615387,10.0,21.299,21.283,10.0]
[1674189615573,10.0,21.299,21.281,104.5334]
[1674189616230,35.22,21.298,21.281,104.5334]
[1674189616627,10.0,21.297,21.281,104.5334]
[1674189617048,10.0,21.295,21.281,104.5334]
[1674189617267,18.92,21.294,21.281,104.5334]
[1674189617483,10.0,21.293,21.281,104.5334]
[1674189617693,18.92,21.292,21.281,104.5334]
[1674189617911,10.0,21.291,21.281,104.5334]
[1674189618136,1.92,21.29,21.281,104.5334]
[1674189620998,10.0,21.295,21.282,10.0]
[1674189621171,1.92,21.294,21.282,10.0]
[1674189622120,1.92,21.294,21.281,104.5334]
[1674189622848,45.22,21.299,21.281,104.5334]
[1674189623057,143.7849,21.3,21.282,10.0]
[1674189623275,20.0,21.332,21.283,37.96]
[1674189623276,122.834,21.307,21.283,37.96]
[1674189623486,242.237,21.307,21.285,10.0]
[1674189623686,242.237,21.307,21.286,37.0]
[1674189623896,277.437,21.307,21.286,37.0]
[1674189624232,23.75576951,21.306,21.286,20.0]
[1674189624441,10.0,21.304,21.286,20.0]
[1674189624645,54.13,21.303,21.286,20.0]
[1674189624855,10.0,21.302,21.287,10.0]
[1674189625079,18.92,21.301,21.287,10.0]
[1674189625388,10.0,21.3,21.286,20.0]
[1674189625573,10.0,21.302,21.286,20.0]
[1674189625916,10.0,21.302,21.287,10.0]
[1674189626845,10.0,21.3,21.287,10.0]
[1674189627063,1.92,21.299,21.287,10.0]
[1674189628213,1.92,21.299,21.286,20.0]
[1674189628644,18.92,21.299,21.286,20.0]
[1674189629052,10.0,21.298,21.286,20.0]
[1674189629379,10.0,21.296,21.275,10.0]
[1674189629574,53.18,21.295,21.275,10.0]
[1674189629782,10.96,21.294,21.275,10.0]
[1674189630016,17.96,21.293,21.275,10.0]
[1674189630197,0.96,21.292,21.275,10.0]
[1674189630411,0.96,21.291,21.275,10.0]
[1674189630727,0.96,21.29,21.275,10.0]
[1674189630938,35.23,21.293,21.275,10.0]
[1674189631156,10.0,21.294,21.275,10.0]
[1674189631366,10.0,21.294,21.279,10.0]
[1674189631593,0.96,21.293,21.279,10.0]
[1674189631799,0.96,21.294,21.279,10.0]
[1674189632109,35.22,21.295,21.28,17.0]
[1674189632306,45.22,21.297,21.279,10.0]
[1674189633268,0.96,21.295,21.275,10.0]
[1674189633460,10.96,21.294,21.275,10.0]
[1674189633670,0.96,21.293,21.275,10.0]
[1674189636100,10.0,21.297,21.275,10.0]
[1674189636309,10.0,21.297,21.279,10.0]
[1674189636521,10.0,21.297,21.28,17.0]
[1674189636723,10.0,21.297,21.281,10.0]
[1674189637678,1.92,21.296,21.279,10.0]
[1674189637893,18.92,21.296,21.279,10.0]
[1674189638092,10.0,21.295,21.279,10.0]
[1674189638414,1.92,21.294,21.279,10.0]
[1674189639250,1.82684556,21.294,21.279,10.0]
[1674189639885,1.82684556,21.294,21.275,10.0]
[1674189640099,35.23,21.293,21.275,10.0]
[1674189640304,27.96,21.292,21.275,10.0]
[1674189640939,27.96,21.292,21.277,10.0]
[1674189641140,27.96,21.292,21.275,10.0]
[1674189641346,0.96,21.291,21.276,20.0]
[1674189641556,0.96,21.29,21.276,20.0]
[1674189641876,0.96,21.289,21.276,20.0]
[1674189642078,0.96,21.288,21.276,20.0]
[1674189642293,0.96,21.287,21.277,10.0]
[1674189642502,0.96,21.288,21.277,10.0]
[1674189646392,35.22,21.296,21.278,17.0]
[1674189646604,35.22,21.296,21.277,10.0]
[1674189647027,10.0,21.293,21.277,10.0]
[1674189647868,0.96,21.292,21.277,10.0]
[1674189648084,0.96,21.291,21.277,10.0]